bitfinex-derivatives/quotes_ETHF0:USTF0_20251021
["timestamp","ask_amount","ask_price","bid_price","bid_amount"]
[1761066350564,0.44579,4036.4,4036.3,2.7866]
[1761066350772,0.44583,4036.1,4036.0,2.5402]
[1761066350973,0.44771484,4036.1,4036.0,2.54196283]
[1761066351665,0.44771484,4036.1,4036.0,0.00176283]
[1761066351862,0.44771484,4036.1,4036.0,2.54196283]
[1761066352059,0.44771484,4036.1,4036.0,0.00176283]
[1761066352262,3.00831484,4036.1,4036.0,0.00176283]
[1761066352468,8.00831484,4036.1,4036.0,0.00176283]
[1761066352868,0.44771484,4036.1,4036.0,2.54196283]
[1761066353277,0.44771484,4036.1,4036.0,0.00176283]
[1761066354569,0.00188484,4036.1,4036.0,0.00176283]
[1761066354774,0.00188484,4036.1,4036.0,7.54196283]
[1761066355172,0.00188484,4036.1,4036.0,2.54196283]
[1761066355674,3.2078,4037.1,4036.2,0.4458]
[1761066355865,3.2078,4037.1,4036.4,5.748]
[1761066355866,0.44576,4036.7,4036.4,5.748]
[1761066356065,3.00638,4036.5,4036.4,3.2078]
[1761066356462,3.00642,4036.1,4036.0,0.00176283]
[1761066356675,0.44860584,4036.1,4036.0,2.54196283]
[1761066356877,0.00278584,4036.1,4036.0,2.54196283]
[1761066357575,10.77118584,4036.1,4036.0,0.00176283]
[1761066357871,3.21058584,4036.1,4036.0,0.00176283]
[1761066358668,0.00278584,4036.1,4036.0,2.54196283]
[1761066360066,0.00278584,4036.1,4036.0,0.00176283]
[1761066360478,0.00278584,4036.1,4036.0,2.54196283]
[1761066360675,0.00278584,4036.1,4036.0,3.53266283]
[1761066361576,0.00278584,4036.1,4036.0,2.54196283]
[1761066361968,3.2078,4037.2,4036.1,1.11457]
[1761066362166,3.2078,4037.2,4037.1,2.5402]
[1761066362377,0.44576,4036.7,4036.5,3.2078]
[1761066362572,0.44576,4036.7,4036.6,2.98597]
[1761066362782,0.44574,4037.0,4036.8,0.44575]
[1761066362986,0.00233659,4037.0,4036.9,2.98593]
[1761066363479,0.00233659,4037.0,4036.9,2.5402]
[1761066364374,0.00233659,4037.0,4036.0,0.99246283]
[1761066364375,3.00642,4036.1,4036.0,0.00176283]
[1761066364578,6.21422,4036.1,4036.0,0.00176283]
[1761066364782,11.21422,4036.1,4036.0,0.00176283]
[1761066365082,0.44592,4035.2,4035.1,5.748]
[1761066365373,0.44592,4035.2,4035.1,2.5402]
[1761066365684,0.44598,4034.7,4034.5,3.2078]
[1761066365883,0.44598,4034.7,4034.5,3.20971238]
[1761066366178,3.00658,4034.7,4034.5,3.20971238]
[1761066366381,0.44598,4034.7,4034.6,2.5402]
[1761066366571,0.44598,4034.7,4034.5,0.00191238]
[1761066366983,3.00658,4034.7,4034.5,0.00191238]
[1761066367481,3.00658,4034.7,4033.2,1.11537]
[1761066367482,10.7684,4034.6,4033.7,2.5402]
[1761066367677,0.44607,4033.9,4033.7,2.5402]
[1761066368083,0.44609,4033.7,4033.6,3.2078]
[1761066368281,3.2078,4034.1,4033.1,2.5402]
[1761066368477,0.00214301,4033.7,4033.6,2.54299962]
[1761066368675,2.56274301,4033.7,4033.6,0.00279962]
[1761066368877,0.00214301,4033.7,4033.6,0.00279962]
[1761066369276,0.00214301,4033.7,4033.6,2.54299962]
[1761066369777,7.56274301,4033.7,4033.6,0.00279962]
[1761066370188,0.00214301,4033.7,4033.6,0.00279962]
[1761066370478,2.56274301,4033.7,4033.6,0.00279962]
[1761066370674,7.56274301,4033.7,4033.6,9.62e-06]
[1761066370875,7.56274301,4033.7,4032.8,0.02479667]
[1761066370876,3.00678,4032.9,4032.8,6.67e-06]
[1761066371076,6.21458,4032.9,4032.8,6.67e-06]
[1761066371273,47.01458,4032.9,4032.8,6.67e-06]
[1761066371979,0.44633,4031.5,4031.4,3.2078]
[1761066372381,0.44632,4031.7,4031.4,3.2078]
[1761066372582,0.44626,4032.2,4031.9,2.5402]
[1761066372781,0.44622,4032.6,4032.1,2.5402]
[1761066372983,1.97330168,4033.5,4032.0,3.2078]
[1761066372984,3.2078,4033.5,4032.6,2.5402]
[1761066373189,0.85800168,4034.4,4034.3,2.98622]
[1761066373380,0.44597,4034.8,4034.6,2.5402]
[1761066373575,2.5606,4034.7,4034.3,3.2078]
[1761066373790,0.44608,4033.8,4033.6,2.5402]
[1761066374076,3.2078,4035.0,4034.0,0.44605]
[1761066374388,3.21060527,4035.0,4034.2,2.5402]
[1761066374686,0.44598,4034.7,4034.2,2.98623]
[1761066374983,3.21060527,4035.0,4034.8,2.98616]
[1761066374984,0.00280527,4035.0,4034.8,2.98616]
[1761066375179,0.00280527,4035.0,4034.9,2.5402]
[1761066375585,0.00280527,4035.0,4034.9,7.5402]
[1761066376086,0.00280527,4035.0,4034.9,2.5402]
[1761066376291,0.00280527,4035.0,4034.9,7.5402]
[1761066376694,3.2078,4036.9,4036.5,2.5402]
[1761066376983,3.2078,4037.4,4036.6,3.2078]
[1761066377175,3.2078,4038.0,4037.2,2.5402]
[1761066377379,3.2078,4038.0,4037.6,2.5402]
[1761066377590,0.0021756,4038.0,4037.8,2.98583]
[1761066377787,0.0021756,4038.0,4037.8,2.98840829]
[1761066378187,0.0021756,4038.0,4037.8,2.54277829]
[1761066378375,3.2078,4038.5,4038.3,0.44558]
[1761066378576,0.44551,4039.0,4038.4,2.4169]
[1761066378577,3.2078,4039.0,4038.4,2.4169]
[1761066378778,5.5329,4038.5,4037.8,2.41947829]
[1761066378990,0.44562,4038.0,4037.8,0.00257829]
[1761066379178,3.2078,4038.5,4037.8,2.41947829]
[1761066379383,3.2078,4039.8,4038.5,2.4169]
[1761066379683,0.44547,4039.4,4038.7,3.2078]
[1761066379878,2.3251,4039.6,4038.8,2.4169]
[1761066380082,3.2078,4039.7,4038.8,2.4169]
[1761066380282,3.2078,4039.0,4038.1,2.4169]
[1761066380481,0.44558,4038.3,4038.1,2.4169]
[1761066380690,3.2078,4039.2,4038.1,3.2078]
[1761066380890,0.44553,4038.8,4038.2,2.92429]
[1761066381096,0.44551,4039.0,4038.2,2.4787]
[1761066381303,3.65328,4039.2,4038.3,2.92428]
[1761066381487,2.2788,4039.6,4038.6,3.2078]
[1761066381994,0.00255419,4039.8,4039.2,2.4787]
[1761066382294,0.44533,4040.6,4040.0,2.4787]
[1761066382597,3.2078,4040.7,4040.0,2.4787]
[1761066382896,3.2078,4040.7,4039.7,3.2078]
[1761066382897,2.2788,4040.4,4039.7,3.2078]
[1761066383195,0.209404,4040.1,4039.8,2.4787]
[1761066383594,0.44542,4039.8,4039.7,3.2078]
[1761066383785,2.2788,4039.8,4039.1,2.4787]
[1761066384096,3.2078,4039.9,4039.1,2.4787]
[1761066384294,3.2078,4039.9,4038.9,3.2078]
[1761066384295,0.4455,4039.1,4038.9,3.2078]
[1761066384594,2.2788,4039.8,4038.9,3.2078]
[1761066384595,0.44549,4039.2,4039.0,2.4787]
[1761066384799,1.1135,4040.0,4038.4,5.6865]
[1761066384800,0.44554,4038.8,4038.4,5.6865]
[1761066385095,0.44555,4038.7,4038.5,2.4787]
[1761066385888,0.44556,4038.5,4038.4,3.2078]
[1761066386387,0.44563,4037.9,4037.8,2.48127829]
[1761066386783,2.2788,4038.8,4037.8,2.48127829]
[1761066386988,0.4456,4038.1,4038.0,3.2078]
[1761066387190,0.4456,4038.1,4038.0,5.6865]
[1761066387395,0.44554,4038.7,4038.0,5.6865]
[1761066387584,3.2078,4038.8,4038.2,2.4787]
[1761066388283,0.4456,4038.2,4038.0,3.2078]
[1761066388489,2.2788,4038.1,4038.0,3.2078]
[1761066388688,0.44561,4038.0,4037.8,2.48127829]
[1761066388891,3.2078,4038.7,4037.8,2.48127829]
[1761066389089,3.2078,4038.7,4037.8,5.68907829]
[1761066389291,0.44557,4038.5,4038.0,0.44561]
[1761066389491,0.44555,4038.6,4038.4,2.4787]
[1761066389685,0.44555,4038.6,4038.3,3.2078]
[1761066389686,3.2078,4039.3,4038.3,3.2078]
[1761066389896,0.44554,4038.7,4038.5,2.4787]
[1761066390097,4.3215,4039.3,4038.5,2.4787]
[1761066390098,0.44551,4039.0,4038.5,2.4787]
[1761066390293,0.44551,4039.0,4038.6,0.44554]
[1761066390490,3.2078,4039.8,4038.9,3.2078]
[1761066390696,0.44548,4039.2,4039.0,2.4787]
[1761066390901,0.44546,4039.5,4039.2,2.4787]
[1761066391093,0.44546,4039.5,4039.4,3.2078]
[1761066391393,0.209404,4040.1,4039.5,2.92414]
[1761066391585,0.44536,4040.3,4040.1,2.4787]
[1761066391992,4.32107,4040.8,4040.1,2.4787]
[1761066391993,3.2078,4040.8,4040.1,2.4787]
[1761066392187,3.2078,4040.8,4040.0,3.2078]
[1761066392188,1.11327,4040.8,4040.0,3.2078]
[1761066392393,2.2788,4041.7,4040.7,2.4787]
[1761066392592,3.2078,4041.5,4040.7,5.68971761]
[1761066392798,0.4453,4040.9,4040.7,3.21101761]
[1761066393098,0.4453,4040.9,4040.8,2.4787]
[1761066394099,2.72411,4040.8,4040.7,0.00321761]
[1761066394286,2.2788,4040.6,4039.4,2.4787]
[1761066394596,3.2078,4039.7,4038.7,2.92423]
[1761066394899,3.2078,4039.7,4038.7,2.4787]
[1761066394900,0.44552,4038.9,4038.7,2.4787]
[1761066395296,2.2788,4039.5,4038.7,2.48144878]
[1761066395594,3.2078,4039.7,4038.7,2.48144878]
[1761066395788,3.2078,4039.7,4038.9,2.4787]
[1761066396186,0.44553,4038.8,4038.7,0.00274878]
[1761066396387,0.44553,4038.8,4038.7,5.68924878]
[1761066396388,0.00207958,4038.8,4038.7,5.68924878]
[1761066396592,2.2788,4040.1,4039.2,2.92418]
[1761066396886,0.44547,4039.3,4039.2,2.4787]
[1761066397091,0.44551,4039.0,4038.8,2.4787]
[1761066397289,0.44553,4038.8,4038.7,3.21054878]
[1761066397493,3.65611092,4038.8,4038.7,0.00274878]
[1761066397697,5.93491092,4038.8,4038.7,0.00274878]
[1761066398196,5.48938092,4038.8,4038.7,0.00274878]
[1761066398390,0.00278092,4038.8,4038.7,0.00274878]
[1761066398587,5.48938092,4038.8,4038.7,0.00274878]
[1761066398889,0.00278092,4038.8,4038.7,2.48144878]
[1761066400394,0.00278092,4038.8,4038.7,7.48144878]
[1761066401203,0.44543,4039.7,4038.9,2.4787]
[1761066401496,2.72423,4039.7,4039.6,3.2078]
[1761066401798,0.44551,4039.0,4038.7,0.00274878]
[1761066402003,0.44548,4039.2,4038.8,2.4787]
[1761066402197,0.00202971,4039.0,4038.8,2.92422]
[1761066402497,3.2078,4040.3,4039.6,2.4787]
[1761066402701,2.2788,4039.9,4039.8,3.2078]
[1761066402904,0.4454,4040.0,4039.8,3.2078]
[1761066403204,0.44553,4038.8,4038.4,2.4787]
[1761066403404,0.00188421,4038.8,4038.7,2.48144878]
[1761066404308,0.00188421,4038.8,4038.7,0.00274878]
[1761066404495,0.00188421,4038.8,4038.7,2.48144878]
[1761066404698,3.20968421,4038.8,4038.7,2.48144878]
[1761066404894,5.48848421,4038.8,4038.7,0.00274878]
[1761066405402,3.20968421,4038.8,4038.7,0.00274878]
[1761066405602,3.20968421,4038.8,4038.7,2.48144878]
[1761066405904,0.00188421,4038.8,4038.7,2.48144878]
[1761066407604,0.85800168,4039.8,4038.7,2.48144878]
[1761066407605,0.85800168,4040.2,4039.0,0.9515]
[1761066407795,3.2078,4040.7,4040.1,2.4787]
[1761066407796,0.85800168,4040.5,4040.1,2.4787]
[1761066408002,0.86585176,4040.4,4040.1,2.4787]
[1761066408298,3.39227,4040.1,4038.9,2.4787]
[1761066408499,0.44547,4039.4,4038.9,2.4787]
[1761066408806,0.00263317,4039.4,4038.9,2.4787]
[1761066408996,0.44548,4039.3,4038.9,0.44551]
[1761066409305,0.00263317,4039.4,4038.7,0.00274878]
[1761066409306,0.00263317,4039.4,4039.2,2.92418]
[1761066409703,4.25807508,4040.4,4039.5,2.92415]
[1761066410002,0.44542,4039.8,4039.3,0.44546]
[1761066410203,0.44543,4039.7,4039.4,2.92416]
[1761066410408,0.44541,4039.9,4039.4,0.44546]
[1761066410604,0.00318315,4039.9,4039.6,2.4787]
[1761066411006,0.44544,4039.6,4039.4,0.44546]
[1761066411206,0.44543,4039.8,4039.7,2.0563]
[1761066411612,0.44859315,4039.9,4039.7,2.50172]
[1761066411912,0.44543,4039.7,4039.6,3.2078]
[1761066412205,2.1117,4038.8,4038.7,0.00274878]
[1761066412410,5.3195,4038.8,4038.7,0.00274878]
[1761066412811,10.3195,4038.8,4038.7,0.00274878]
[1761066413305,2.55753,4036.1,4035.9,1.3197125]
[1761066413506,11.23157,4036.2,4035.1,1.97289227]
[1761066413699,0.44586,4035.8,4035.2,2.0563]
[1761066413898,0.4458,4036.4,4035.7,2.0563]
[1761066414098,0.00198935,4036.4,4036.3,3.2078]
[1761066414302,0.44557,4038.5,4038.0,2.0563]
[1761066414511,0.4456,4038.2,4038.0,2.0563]
[1761066414711,0.44564,4037.8,4037.4,2.0563]
[1761066414906,0.44562,4038.0,4037.4,2.0563]
[1761066415105,3.2078,4038.1,4037.6,2.0563]
[1761066415307,0.00215002,4038.0,4037.7,0.44564]
[1761066415509,0.44777002,4038.0,4037.8,2.0563]
[1761066415908,0.00215002,4038.0,4037.2,5.70979]
[1761066416507,0.00215002,4038.0,4037.5,0.44566]
[1761066416722,0.00215002,4038.0,4037.6,2.0563]
[1761066416907,0.00215002,4038.0,4037.6,2.50196]
[1761066417106,0.00215002,4038.0,4037.9,2.0563]
[1761066418410,0.44552,4038.9,4038.1,2.0563]
[1761066418615,0.44552,4038.9,4038.5,2.0563]
[1761066418818,5.3195,4039.3,4038.5,2.0563]
[1761066419315,0.44551,4039.0,4038.5,2.50186]
[1761066419511,0.44551,4039.0,4038.7,2.0563]
[1761066419713,0.44552,4038.9,4038.7,2.05908536]
[1761066420117,3.2078,4038.8,4038.7,2.05908536]
[1761066420308,3.2078,4038.8,4036.4,1.3197125]
[1761066420309,2.1117,4037.9,4036.2,2.0563]
[1761066420503,3.2078,4037.4,4036.2,2.0563]
[1761066420703,3.2078,4037.4,4035.6,0.9035]
[1761066420704,0.4457,4037.3,4037.0,2.0563]
[1761066420905,0.8899,4038.1,4037.0,2.0563]
[1761066420906,0.86514689,4038.2,4037.3,2.0563]
[1761066421106,3.40942034,4038.5,4037.8,2.0563]
[1761066421107,0.86514689,4038.5,4037.8,2.0563]
[1761066421411,0.86514689,4038.5,4038.3,2.0563]
[1761066421412,0.44557,4038.5,4038.3,2.0563]
[1761066421911,0.44555,4038.7,4038.3,2.0563]
[1761066422112,3.2078,4039.2,4038.2,3.2078]
[1761066422418,4.07294689,4039.2,4038.3,3.2078]
[1761066422616,0.44553,4038.8,4038.7,2.0563]
[1761066422818,0.44557,4038.5,4038.3,2.0563]
[1761066423422,2.1117,4038.3,4037.9,1.4428]
[1761066423608,0.44558,4038.4,4038.0,2.0563]
[1761066423808,0.44553,4038.8,4038.5,0.44556]
[1761066424013,1.31066689,4038.9,4038.6,2.0563]
[1761066424213,0.44561,4038.1,4038.0,3.2078]
[1761066424419,0.44561,4038.1,4037.9,1.4428]
[1761066425318,0.8642165,4038.7,4038.3,2.50188]
[1761066425513,1.3097465,4038.8,4038.6,2.0563]
[1761066425712,1.11389,4038.6,4037.9,3.4991]
[1761066425913,0.44562,4038.1,4037.9,3.4991]
[1761066426220,0.4456,4038.2,4038.0,2.0563]
[1761066426521,0.4456,4038.2,4037.9,1.4428]
[1761066426522,0.44562,4038.0,4037.9,1.4428]
[1761066427117,0.8642165,4038.9,4038.2,2.0563]
[1761066427417,0.44554,4038.7,4038.5,2.0563]
[1761066427720,2.55732,4038.0,4037.9,1.4428]
[1761066427924,7.55732,4038.0,4037.9,1.4428]
[1761066428418,2.55732,4038.0,4037.9,1.4428]
[1761066428619,0.44562,4038.0,4037.9,1.4428]
[1761066428824,2.55732,4038.0,4037.9,1.4428]
[1761066429017,0.44576,4036.8,4036.6,2.0563]
[1761066429526,0.44578,4036.5,4036.4,3.2078]
[1761066429724,0.44578,4036.5,4036.4,5.2641]
[1761066430120,0.44574,4037.0,4036.6,2.50207]
[1761066430321,2.1117,4037.5,4036.6,2.0563]
[1761066430627,0.44571,4037.2,4037.0,0.9035]
[1761066430923,0.44569,4037.4,4037.3,2.0563]
[1761066431118,0.44568,4037.5,4037.3,2.0563]
[1761066431518,3.2078,4037.6,4037.0,2.0563]
[1761066431716,0.86359222,4037.9,4037.1,2.0563]
[1761066431928,0.44568,4037.5,4037.3,2.0563]
[1761066432115,0.86359222,4038.1,4037.3,2.0563]
[1761066432116,3.2078,4038.0,4037.3,2.0563]
[1761066432320,0.86359222,4038.3,4037.1,2.0563]
[1761066432519,3.2078,4038.5,4037.6,2.50196]
[1761066432722,0.44562,4038.0,4037.8,2.0563]
[1761066434324,0.44562,4038.0,4037.1,2.0563]
[1761066434325,0.4457,4037.2,4037.1,2.0563]
[1761066434516,0.4457,4037.3,4037.1,2.0563]
[1761066435025,3.22578,4037.9,4037.1,2.50202]
[1761066435221,3.2078,4038.0,4037.5,2.0563]
[1761066435222,0.44567,4037.6,4037.5,2.0563]
[1761066436115,3.2078,4038.0,4037.5,2.50197]
[1761066436427,0.44565,4037.7,4037.5,2.0563]
[1761066436624,2.1117,4038.4,4037.5,2.0563]
[1761066436924,0.44559,4038.3,4038.1,2.0563]
[1761066437316,0.44564,4037.8,4037.4,3.2078]
[1761066437518,3.2078,4038.6,4037.7,2.50195]
[1761066437519,0.44563,4037.9,4037.7,2.50195]
[1761066437724,1.11389,4038.6,4037.8,2.50194]
[1761066437920,5.3195,4038.8,4038.1,2.0563]
[1761066438224,0.44559,4038.3,4038.1,2.0563]
[1761066439418,0.86359222,4039.2,4038.1,2.0563]
[1761066439419,3.21033608,4039.3,4038.3,2.0412]
[1761066439734,0.44565,4037.8,4037.6,2.0412]
[1761066440117,2.0513,4038.6,4037.6,2.0412]
[1761066440322,0.4456,4038.2,4037.8,2.48683]
[1761066440823,0.44561,4038.1,4037.8,2.0412]
[1761066441425,0.44559,4038.3,4037.8,2.0412]
[1761066441725,0.44562,4038.0,4037.8,2.0412]
[1761066443124,3.2078,4038.3,4037.8,2.0412]
[1761066443323,0.44563,4038.0,4037.8,2.0412]
[1761066443923,0.44573,4037.1,4036.9,3.2078]
[1761066444125,1.11411,4037.8,4036.4,0.89121441]
[1761066444126,0.44578,4036.6,4036.4,3.2106683]
[1761066444429,2.0296,4036.3,4035.4,3.2078]
[1761066444733,0.44584,4036.1,4035.5,2.0535]
[1761066444937,0.44586,4035.9,4035.5,2.0535]
[1761066445233,0.44588,4035.7,4035.5,2.0535]
[1761066445435,0.44877451,4035.7,4035.5,2.05574573]
[1761066446122,5.2374,4035.6,4035.5,0.00224573]
[1761066446524,3.2078,4035.6,4035.5,0.00224573]
[1761066446735,3.2078,4035.6,4035.5,2.05574573]
[1761066447124,5.2374,4035.6,4035.5,0.00224573]
[1761066447727,2.0296,4035.4,4034.2,2.0535]
[1761066448026,0.44596,4034.9,4034.3,0.44601]
[1761066448234,3.2078,4035.0,4034.4,2.0535]
[1761066448426,3.2078,4035.0,4034.3,0.44601]
[1761066448427,3.2078,4035.0,4034.2,2.0535]
[1761066448632,0.44596,4034.9,4034.4,2.49951]
[1761066448838,0.44594,4035.1,4034.5,0.44599]
[1761066449034,0.00289451,4035.7,4035.6,2.0535]
[1761066449835,0.44876451,4035.7,4035.6,2.0535]
[1761066450533,3.15656451,4036.0,4035.6,2.0535]
[1761066450731,0.44593,4035.1,4035.0,2.0535]
[1761066451034,6.11463,4035.9,4035.0,2.0535]
[1761066451035,0.44593,4035.2,4035.0,2.0535]
[1761066451738,0.00198487,4035.2,4035.1,2.0535]
[1761066451936,0.00198487,4035.2,4035.1,7.0535]
[1761066452137,3.2078,4036.5,4035.8,2.49935]
[1761066452341,1.11448,4036.4,4035.9,2.0535]
[1761066452629,3.65364,4036.0,4035.4,2.0535]
[1761066452835,0.44579,4036.4,4036.2,2.0535]
[1761066453236,3.2078,4037.0,4036.2,2.0535]
[1761066453532,3.2078,4037.5,4037.1,2.0535]
[1761066453732,3.2078,4037.5,4037.0,0.8195]
[1761066453733,3.2078,4038.2,4037.4,3.2078]
[1761066453936,0.44559,4038.3,4038.1,2.0535]
[1761066454136,0.44557,4038.4,4038.1,2.0535]
[1761066454331,3.2078,4038.7,4038.1,2.0535]
[1761066454527,3.2078,4038.7,4038.5,0.44556]
[1761066454736,0.44553,4038.8,4038.6,2.0535]
[1761066455237,3.2078,4039.2,4038.6,2.0535]
[1761066455540,0.44553,4038.8,4038.6,2.0535]
[1761066456836,0.44850222,4038.8,4038.6,0.00210345]
[1761066457038,5.2374,4038.7,4038.6,0.00210345]
[1761066457236,0.44571,4037.2,4037.0,2.0535]
[1761066458042,0.44566,4037.6,4037.3,2.0535]
[1761066458233,0.44565,4037.7,4037.5,2.0535]
[1761066458835,0.4457,4037.3,4037.1,2.0535]
[1761066459036,0.44565,4037.7,4037.4,2.49917]
[1761066459238,0.44563,4037.9,4037.7,2.0535]
[1761066459635,0.44567,4037.5,4037.4,2.0535]
[1761066460340,0.44567,4037.5,4037.0,0.82219625]
[1761066460341,0.44572,4037.1,4037.0,0.00269625]
[1761066460535,5.68312,4037.1,4037.0,0.00269625]
[1761066460737,8.65352,4037.1,4037.0,0.00269625]
[1761066461041,0.44572,4037.1,4037.0,2.05619625]
[1761066461342,0.44571,4037.2,4037.0,2.05619625]
[1761066462147,0.44569,4037.4,4037.1,2.0535]
[1761066462441,0.44565,4037.7,4037.5,2.0535]
[1761066463031,0.44565,4037.7,4037.0,0.82219625]
[1761066463032,0.44571,4037.2,4037.0,0.00269625]
[1761066463231,3.65351,4037.2,4037.0,0.00269625]
[1761066463631,2.0296,4037.1,4037.0,0.00269625]
[1761066463836,7.0296,4037.1,4037.0,0.00269625]
[1761066464947,0.4457,4037.3,4037.1,2.0535]
[1761066465139,3.2078,4037.7,4037.3,0.44569]
[1761066465336,3.2078,4037.7,4037.4,2.0535]
[1761066465337,0.44567,4037.6,4037.4,2.0535]
[1761066465540,0.44572,4037.1,4037.0,2.87569625]
[1761066465735,3.2078,4037.7,4037.1,2.0535]
[1761066466243,0.4457,4037.3,4037.1,2.0535]
[1761066466433,0.44566,4037.6,4037.1,2.49921]
[1761066466640,0.4457,4037.3,4037.1,2.0535]
[1761066467546,0.44568,4037.4,4037.1,2.49921]
[1761066467843,0.4457,4037.3,4037.1,2.0535]
[1761066468044,3.2078,4037.7,4037.1,2.0535]
[1761066468045,0.44568,4037.4,4037.1,2.0535]
[1761066468241,0.44568,4037.5,4037.1,2.49921]
[1761066468435,0.44568,4037.5,4037.3,2.0535]
[1761066469241,0.44568,4037.5,4037.3,2.49919]
[1761066469843,0.44568,4037.5,4037.3,2.0535]
[1761066470343,3.2078,4038.2,4037.6,2.49916]
[1761066470537,0.4456,4038.1,4038.0,0.8195]
[1761066470745,0.44568,4037.5,4037.3,3.2078]
[1761066470943,0.44562,4038.0,4037.7,0.44565]
[1761066471140,3.2078,4038.2,4037.8,1.9521]
[1761066471450,0.44563,4038.0,4037.8,1.9521]
[1761066471742,0.44571,4037.1,4037.0,2.77429625]
[1761066472049,2.40911,4037.1,4037.0,0.00269625]
[1761066472244,0.44571,4037.1,4037.0,0.00269625]
[1761066472546,0.44571,4037.1,4037.0,1.95479625]
[1761066472942,1.29772034,4038.5,4038.0,1.19182]
[1761066473148,0.00297222,4038.8,4038.7,2.39764]
[1761066473348,0.00297222,4038.8,4038.4,3.2078]
[1761066473349,3.2078,4039.8,4039.6,1.9521]
[1761066473556,3.65322,4039.8,4039.6,1.9521]
[1761066473742,0.44542,4039.8,4039.6,1.9521]
[1761066474344,0.44816569,4039.8,4039.6,1.9521]
[1761066475146,0.44547,4039.3,4039.2,1.9521]
[1761066475348,0.44548,4039.2,4038.3,13.5278]
[1761066475552,0.44552,4038.9,4038.5,0.44555]
[1761066475854,0.44555,4038.6,4038.4,1.9521]
[1761066476046,0.44553,4038.8,4038.4,2.39767]
[1761066476752,0.44553,4038.8,4038.5,0.44556]
[1761066476944,0.44553,4038.8,4038.6,1.9521]
[1761066477250,0.44552,4038.9,4038.6,1.9521]
[1761066477450,0.44553,4038.8,4038.6,1.9521]
[1761066477646,0.44565,4037.8,4037.1,3.2078]
[1761066477949,3.2078,4038.0,4037.5,1.9521]
[1761066478148,1.9634,4038.3,4037.4,1.9521]
[1761066478351,5.1712,4037.9,4037.1,3.2078]
[1761066478651,5.1712,4037.9,4037.3,1.9521]
[1761066478841,0.44567,4037.6,4037.3,1.9521]
[1761066479039,0.44558,4038.3,4037.8,0.44564]
[1761066479342,1.11403,4038.1,4037.4,1.9521]
[1761066479548,0.44566,4037.7,4037.4,1.9521]
[1761066479745,0.44566,4037.7,4037.3,0.44569]
[1761066479746,5.1712,4039.1,4037.7,1.9521]
[1761066479944,2.22718,4039.7,4037.9,1.9521]
[1761066479945,3.2078,4038.6,4037.9,1.9521]
[1761066480254,1.9634,4038.5,4037.7,2.39774]
[1761066480444,3.2078,4038.6,4037.9,1.9521]
[1761066480649,0.44552,4038.9,4038.0,0.7462]
[1761066480950,3.2078,4039.1,4038.3,1.9521]
[1761066481149,3.2078,4039.1,4039.0,1.9521]
[1761066481350,3.2078,4040.0,4038.9,3.2078]
[1761066481650,3.6532,4040.0,4039.7,1.9521]
[1761066481848,0.44541,4039.9,4039.7,1.9521]
[1761066482048,0.44541,4039.9,4039.4,0.44545]
[1761066482049,3.2078,4040.0,4039.0,2.6983]
[1761066482251,0.44547,4039.3,4039.0,2.3976]
[1761066482454,0.44547,4039.3,4039.0,1.9521]
[1761066482650,3.2078,4039.1,4039.0,1.9521]
[1761066482960,0.44548,4039.2,4039.0,1.9521]
[1761066483249,0.44546,4039.4,4039.1,0.44549]
[1761066483455,0.44541,4039.9,4039.5,1.9521]
[1761066483650,0.44817569,4039.8,4039.5,2.39755]
[1761066483951,0.4455,4039.1,4038.9,1.9521]
[1761066484157,0.44554,4038.7,4038.5,5.1599]
[1761066484457,0.44554,4038.7,4038.5,1.9521]
[1761066484654,3.2078,4039.1,4037.9,4.32185]
[1761066484954,3.2078,4039.6,4038.7,1.9521]
[1761066485157,0.00274569,4039.8,4039.7,1.9521]
[1761066485856,4.569e-05,4039.8,4039.7,10.1599]
[1761066486361,1.68837964,4040.9,4039.2,3.2078]
[1761066486362,3.2078,4040.2,4039.2,3.2078]
[1761066486559,1.11322,4041.0,4039.1,1.9521]
[1761066486560,0.44548,4039.3,4039.1,1.9521]
[1761066487145,1.9634,4040.1,4039.3,1.9521]
[1761066487455,0.44543,4039.7,4039.3,2.39757]
[1761066487655,0.44541,4039.9,4039.6,1.9521]
[1761066487857,0.44855421,4040.1,4039.9,1.9521]
[1761066488061,0.44855421,4040.1,4039.9,0.00243503]
[1761066488355,2.41195421,4040.1,4039.9,0.00243503]
[1761066488560,0.44855421,4040.1,4039.9,1.95453503]
[1761066488955,0.44855421,4040.1,4039.9,0.00243503]
[1761066488956,0.00316421,4040.1,4039.9,0.00243503]
[1761066489256,2.40879,4040.0,4039.9,0.00243503]
[1761066489457,0.44539,4040.0,4039.9,1.95453503]
[1761066489859,0.44539,4040.0,4039.9,0.00243503]
[1761066490163,7.40879,4040.0,4039.9,0.00243503]
[1761066490464,7.40879,4040.0,4038.4,1.9521]
[1761066490465,0.44556,4038.5,4038.4,1.9521]
[1761066491268,0.44556,4038.5,4038.4,1.95471876]
[1761066491451,3.2078,4038.9,4038.4,1.95471876]
[1761066491657,3.2078,4039.4,4038.5,1.9521]
[1761066491857,0.44553,4038.8,4038.5,1.9521]
[1761066492051,0.44554,4038.7,4038.5,1.9521]
[1761066492960,3.2078,4039.5,4038.5,2.39765]
[1761066493164,1.9634,4039.2,4038.4,3.21041876]
[1761066493366,0.44565,4037.7,4037.1,0.66503262]
[1761066493664,0.44572,4037.0,4036.9,0.66503262]
[1761066493872,3.65352,4037.0,4036.9,0.66503262]
[1761066494256,0.44575,4036.8,4036.6,3.2078]
[1761066494465,3.2078,4037.5,4037.0,0.7462]
[1761066494759,1.29561623,4039.3,4037.0,0.7462]
[1761066494760,1.11373,4039.2,4037.2,3.2078]
[1761066494962,1.9634,4038.9,4037.8,3.2078]
[1761066495357,1.9634,4038.9,4038.3,3.2078]
[1761066495559,3.19261,4039.0,4038.8,3.2078]